bitfinex-derivatives/quotes_BTCF0:USTF0_20251110
["timestamp","ask_amount","ask_price","bid_price","bid_amount"]
[1762735207500,0.76408668,106030.0,106020.0,0.00219803]
[1762735207701,1.38375339,106030.0,106010.0,0.00114208]
[1762735207909,0.42660668,106020.0,106010.0,0.00114208]
[1762735208095,0.42660668,106020.0,106010.0,0.00014208]
[1762735208096,0.44627339,106020.0,106010.0,0.00014208]
[1762735208802,1.04627339,106020.0,106010.0,0.00014208]
[1762735209001,0.98046671,106020.0,106010.0,0.00014208]
[1762735209201,0.98046671,106020.0,106010.0,0.00234011]
[1762735209407,0.38046671,106020.0,106010.0,0.34877241]
[1762735209606,0.6982,106020.0,106010.0,0.34877241]
[1762735209907,0.6982,106020.0,106010.0,0.34977241]
[1762735210109,0.6982,106020.0,106010.0,0.25542011]
[1762735210300,0.3384,106020.0,106010.0,0.60922241]
[1762735210500,0.001,106020.0,106010.0,0.97102241]
[1762735210701,0.33848,106020.0,106010.0,0.97102241]
[1762735212003,0.33836,106020.0,106010.0,0.99188241]
[1762735212202,0.33836,106020.0,106010.0,0.89753011]
[1762735212598,0.69916,106020.0,106010.0,0.51587011]
[1762735212804,0.69916,106020.0,106010.0,0.25642011]
[1762735213005,0.33836,106020.0,106010.0,0.25642011]
[1762735213209,0.69916,106020.0,106010.0,0.25642011]
[1762735213607,0.33836,106020.0,106010.0,0.25642011]
[1762735213815,0.33836,106020.0,106010.0,0.87667011]
[1762735214513,0.001,106020.0,106010.0,0.97099638]
[1762735214710,0.3384,106020.0,106010.0,1.08620878]
[1762735216216,0.001,106020.0,106010.0,1.08620878]
[1762735217618,0.001,106020.0,106010.0,1.13106914]
[1762735218208,0.001,106020.0,106010.0,1.03671674]
[1762735220509,0.001,106020.0,106010.0,0.99185638]
[1762735221105,0.001,106020.0,106010.0,1.08620868]
[1762735221617,0.001,106020.0,106010.0,0.99185638]
[1762735221810,0.001,106020.0,106010.0,0.61722011]
[1762735222006,0.001,106020.0,106010.0,0.03740661]
[1762735222411,0.3618,106020.0,106010.0,0.28948661]
[1762735222614,0.001,106020.0,106010.0,1.00408891]
[1762735222815,0.001,106020.0,106010.0,1.02494891]
[1762735223117,0.3376,106020.0,106010.0,0.99188241]
[1762735223715,0.001,106020.0,106010.0,0.99188241]
[1762735223911,0.001,106020.0,106010.0,1.08620868]
[1762735225011,0.001,106020.0,106010.0,1.42272868]
[1762735225206,0.34302,106040.0,106030.0,0.6058645]
[1762735225419,0.34302,106040.0,106030.0,0.66198363]
[1762735225720,0.34302,106040.0,106030.0,0.56764913]
[1762735226016,0.34302,106040.0,106030.0,0.54678913]
[1762735226521,0.34402,106040.0,106030.0,0.03725913]
[1762735226722,0.70482,106040.0,106030.0,0.03725913]
[1762735226915,0.70482,106040.0,106030.0,0.31163913]
[1762735227313,0.34402,106040.0,106030.0,0.30336189]
[1762735227513,0.34402,106040.0,106030.0,0.56909189]
[1762735228519,0.70482,106040.0,106030.0,0.56909189]
[1762735228719,0.70482,106040.0,106030.0,0.30336189]
[1762735228913,0.70482,106040.0,106030.0,0.56909189]
[1762735229119,0.70482,106040.0,106030.0,0.02898189]
[1762735229321,0.70482,106040.0,106030.0,0.56909189]
[1762735229517,0.3663,106040.0,106030.0,0.66342639]
[1762735229816,0.7045,106040.0,106030.0,0.66342639]
[1762735230125,0.3683,106040.0,106030.0,0.56909189]
[1762735230623,0.3683,106040.0,106030.0,0.66342639]
[1762735230624,0.34362,106040.0,106030.0,0.66342639]
[1762735230826,0.34362,106040.0,106030.0,0.56909189]
[1762735231024,0.34362,106040.0,106030.0,0.66342639]
[1762735231723,0.34362,106040.0,106030.0,0.56909189]
[1762735232326,0.34362,106040.0,106030.0,0.66342639]
[1762735232626,0.34362,106040.0,106030.0,0.56909189]
[1762735232918,0.0075,106040.0,106030.0,0.67170363]
[1762735233128,0.78644381,106040.0,106030.0,0.06204021]
[1762735233310,0.78644381,106040.0,106030.0,0.02897911]
[1762735233511,0.78644381,106040.0,106030.0,0.06204021]
[1762735233725,0.78644381,106040.0,106030.0,0.33642021]
[1762735234020,0.78644381,106040.0,106030.0,0.60215021]
[1762735234826,0.78644381,106040.0,106030.0,0.02897911]
[1762735235520,0.78644381,106040.0,106030.0,0.27857803]
[1762735238219,0.78644381,106040.0,106030.0,0.002]
[1762735238623,0.002,106020.0,106010.0,0.03320318]
[1762735238825,0.78058381,106020.0,106010.0,0.40413361]
[1762735239017,0.41978381,106020.0,106010.0,0.66986361]
[1762735239220,0.69836,106020.0,106010.0,0.66986361]
[1762735239421,0.69836,106020.0,106010.0,0.57551121]
[1762735240729,0.78058381,106020.0,106010.0,0.00334011]
[1762735241325,0.78158381,106020.0,106010.0,0.00434011]
[1762735243027,0.69936,106020.0,106010.0,0.00434011]
[1762735243234,0.78158381,106020.0,106010.0,0.00434011]
[1762735243421,0.69936,106020.0,106010.0,0.00434011]
[1762735243736,0.78158381,106020.0,106010.0,0.00434011]
[1762735244128,0.78158381,106020.0,106010.0,0.09869241]
[1762735244323,0.69936,106020.0,106010.0,0.63880241]
[1762735244634,0.69936,106020.0,106010.0,0.54445011]
[1762735245029,0.003,106020.0,106010.0,0.63880241]
[1762735245231,0.33816,106020.0,106010.0,0.63880241]
[1762735245432,0.69896,106020.0,106010.0,0.54445011]
[1762735246029,0.33816,106020.0,106010.0,0.54445011]
[1762735246229,0.69896,106020.0,106010.0,0.54445011]
[1762735246429,0.3638,106020.0,106010.0,0.54445011]
[1762735246630,0.338,106020.0,106010.0,0.54445011]
[1762735247328,0.33792,106020.0,106010.0,0.65966251]
[1762735247730,0.33792,106020.0,106010.0,0.56531011]
[1762735248739,0.003,106020.0,106010.0,0.56531011]
[1762735248935,0.33784,106020.0,106010.0,0.56531011]
[1762735249637,0.33784,106020.0,106010.0,0.71992011]
[1762735250328,0.33784,106020.0,106010.0,0.75298121]
[1762735250536,0.33784,106020.0,106010.0,0.71992011]
[1762735252927,0.76444282,106020.0,106010.0,0.71992011]
[1762735253444,0.83024564,106020.0,106010.0,0.71992011]
[1762735254232,0.83024564,106020.0,106010.0,0.45419011]
[1762735254432,0.83024564,106020.0,106010.0,0.71032011]
[1762735255132,0.83024564,106020.0,106010.0,0.80467271]
[1762735255439,0.46944564,106020.0,106010.0,0.80467271]
[1762735255740,0.83024564,106020.0,106010.0,0.80467271]
[1762735256037,0.83024564,106020.0,106010.0,0.71032011]
[1762735256541,0.83024564,106020.0,106010.0,0.80467271]
[1762735256731,0.83024564,106020.0,106010.0,0.71032011]
[1762735257340,0.83024564,106020.0,106010.0,0.80467271]
[1762735257544,0.83024564,106020.0,106010.0,0.71032011]
[1762735257738,0.69864,106020.0,106010.0,0.71032011]
[1762735257948,0.82952564,106020.0,106010.0,0.71032011]
[1762735260834,0.69792,106020.0,106010.0,0.71032011]
[1762735261041,0.82952564,106020.0,106010.0,0.80467271]
[1762735261240,0.33712,106020.0,106010.0,0.80467271]
[1762735261438,0.40292282,106020.0,106010.0,0.80467271]
[1762735261739,0.76352282,106020.0,106010.0,0.80467271]
[1762735261930,0.82932564,106020.0,106010.0,0.80467271]
[1762735262134,0.33692,106020.0,106010.0,0.71032011]
[1762735262354,0.36746,106040.0,106030.0,0.67509]
[1762735262634,0.36746,106040.0,106030.0,0.69814803]
[1762735262635,0.47218564,106040.0,106030.0,0.69814803]
[1762735263139,0.83298564,106040.0,106030.0,0.67728803]
[1762735263435,0.70238,106040.0,106030.0,0.69914803]
[1762735263642,0.83398564,106040.0,106030.0,0.69914803]
[1762735264345,0.83598564,106040.0,106030.0,0.77454949]
[1762735264541,0.47518564,106040.0,106030.0,0.77454949]
[1762735264840,0.47518564,106040.0,106030.0,0.70014803]
[1762735265034,0.47302564,106040.0,106030.0,0.70014803]
[1762735265236,0.47302564,106040.0,106030.0,0.73320913]
[1762735265237,0.34142,106040.0,106030.0,0.73320913]
[1762735265536,0.34142,106040.0,106030.0,0.70014803]
[1762735265537,0.47410564,106040.0,106030.0,0.70014803]
[1762735265737,0.47410564,106040.0,106030.0,0.73320913]
[1762735266436,0.40830282,106040.0,106030.0,0.73320913]
[1762735266640,0.34142,106040.0,106030.0,0.82754383]
[1762735266840,0.34142,106040.0,106030.0,0.73320913]
[1762735267140,0.83598564,106040.0,106030.0,0.73320913]
[1762735267345,0.83598564,106040.0,106030.0,0.77568891]
[1762735268439,0.83598564,106040.0,106030.0,0.70014803]
[1762735268834,0.70438,106040.0,106030.0,0.70014803]
[1762735269035,0.83598564,106040.0,106030.0,0.70014803]
[1762735269838,0.0075,106040.0,106030.0,0.86028555]
[1762735270036,0.34118,106040.0,106030.0,0.86028555]
[1762735270441,0.34118,106040.0,106030.0,0.89334665]
[1762735270638,0.34118,106040.0,106030.0,0.73320913]
[1762735271141,0.40698282,106040.0,106030.0,0.80856891]
[1762735271447,0.34118,106040.0,106030.0,0.80856891]
[1762735271645,0.0075,106040.0,106030.0,0.96870643]
[1762735271848,0.34122,106040.0,106030.0,1.01373832]
[1762735272841,0.34122,106040.0,106030.0,0.91940362]
[1762735273339,0.34122,106040.0,106030.0,0.8536008]
[1762735273735,0.34122,106040.0,106030.0,1.01373842]
[1762735274244,0.34122,106040.0,106030.0,0.8536008]
[1762735274545,0.34122,106040.0,106030.0,0.91940362]
[1762735275742,0.3608,106050.0,106040.0,0.51767]
[1762735275939,0.69428,106050.0,106040.0,0.54072803]
[1762735276139,0.76008282,106050.0,106040.0,0.54072803]
[1762735276841,0.40128282,106050.0,106040.0,0.90252803]
[1762735277346,0.33548,106050.0,106040.0,0.90352803]
[1762735277546,0.33548,106050.0,106040.0,1.06094803]
[1762735278441,0.35264,106050.0,106040.0,1.06094803]
[1762735278753,0.33548,106050.0,106040.0,1.06094803]
[1762735280240,0.33548,106050.0,106040.0,1.12675085]
[1762735281041,0.33548,106050.0,106040.0,1.22107675]
[1762735281347,0.33548,106050.0,106040.0,1.12675085]
[1762735282047,0.33548,106050.0,106040.0,1.06094803]
[1762735282747,0.77066282,106050.0,106040.0,0.70014803]
[1762735283048,0.40986282,106050.0,106040.0,0.70014803]
[1762735283440,0.33548,106050.0,106040.0,0.70014803]
[1762735283641,0.40128282,106050.0,106040.0,0.70014803]
[1762735283946,0.41844282,106050.0,106040.0,0.67928803]
[1762735284147,0.41844282,106050.0,106040.0,0.70014803]
[1762735285137,0.77924282,106050.0,106040.0,0.67928803]
[1762735285342,0.71344,106050.0,106040.0,0.67928803]
[1762735285644,0.7047,106050.0,106040.0,0.86027675]
[1762735285846,0.77908282,106050.0,106040.0,0.70014803]
[1762735286045,0.77908282,106050.0,106040.0,0.67928803]
[1762735286951,0.84488564,106050.0,106040.0,0.67928803]
[1762735287148,0.01716,106040.0,106030.0,0.07550186]
[1762735287347,0.01716,106030.0,106020.0,0.15742]
[1762735287554,0.01716,106020.0,106010.0,0.8096632]
[1762735287747,0.50956564,106020.0,106010.0,0.71750913]
[1762735288042,0.50956564,106020.0,106010.0,0.18986913]
[1762735288251,0.01716,106010.0,106000.0,0.08265275]
[1762735288441,0.84288564,106010.0,106000.0,0.0330611]
[1762735288745,0.77708282,106010.0,106000.0,0.03525913]
[1762735288948,0.77708282,106010.0,106000.0,0.19982913]
[1762735288949,0.71128,106010.0,106000.0,0.19982913]
[1762735289351,0.84288564,106010.0,106000.0,0.03525913]
[1762735289556,1.44288564,106010.0,106000.0,0.0330611]
[1762735289942,1.44288564,106010.0,106000.0,0.0340611]
[1762735290445,1.44288564,106010.0,106000.0,0.0330611]
[1762735290753,0.01716,106000.0,105990.0,0.02462318]
[1762735290939,0.55820846,106000.0,105980.0,0.00880118]
[1762735291148,0.82576564,105990.0,105980.0,0.00880118]
[1762735291444,1.42576564,105990.0,105980.0,0.00880118]
[1762735292449,1.49156846,105990.0,105970.0,0.00364896]
[1762735292652,0.55820846,105980.0,105970.0,0.00364896]
[1762735292843,0.3608,105980.0,105970.0,0.00364896]
[1762735293043,0.44314637,105980.0,105970.0,0.00364896]
[1762735293448,1.04314637,105980.0,105970.0,0.00364896]
[1762735293652,1.04314637,105980.0,105950.0,0.09912008]
[1762735293849,0.80394637,105960.0,105950.0,0.10132301]
[1762735294042,0.80394637,105960.0,105950.0,0.00691701]
[1762735294242,0.80394637,105960.0,105950.0,0.00471898]
[1762735294644,1.13744282,105960.0,105950.0,0.00691701]
[1762735294847,1.17589474,105960.0,105950.0,0.00691701]
[1762735295453,1.05509645,105960.0,105950.0,0.00691701]
[1762735295652,1.17589474,105960.0,105950.0,0.00691701]
[1762735295854,1.17589474,105960.0,105950.0,0.00791701]
[1762735296154,1.05509645,105960.0,105950.0,0.00891701]
[1762735296356,1.17589474,105960.0,105950.0,0.00891701]
[1762735296556,0.84249474,105960.0,105950.0,0.00691701]
[1762735296748,0.81513474,105960.0,105950.0,0.53655701]
[1762735297244,0.69433645,105960.0,105950.0,0.53655701]
[1762735297447,0.81513474,105960.0,105950.0,0.00891701]
[1762735297843,0.81513474,105960.0,105950.0,0.28341701]
[1762735298051,0.81513474,105960.0,105950.0,0.53655701]
[1762735298553,0.69433645,105960.0,105950.0,0.00671898]
[1762735298851,0.81513474,105960.0,105950.0,0.00671898]
[1762735299155,0.81513474,105960.0,105950.0,0.00571898]
[1762735300163,0.81513474,105960.0,105940.0,0.00014208]
[1762735300455,1.8608,105950.0,105940.0,0.01337325]
[1762735301055,2.19432,105950.0,105940.0,0.70762064]
[1762735301260,1.8608,105950.0,105940.0,0.70762064]
[1762735301456,2.19432,105950.0,105940.0,0.72848064]
[1762735301750,1.8608,105950.0,105940.0,0.72848064]
[1762735301950,2.19432,105950.0,105940.0,0.72848064]
[1762735302356,2.19432,105950.0,105940.0,0.01321261]
[1762735302656,2.19432,105950.0,105920.0,0.86688346]
[1762735302657,2.19532,105950.0,105920.0,0.86688346]
[1762735302957,0.3608,105930.0,105920.0,0.8067026]
[1762735303161,0.69436,105930.0,105920.0,0.7122706]
[1762735303550,0.69436,105930.0,105920.0,0.8275634]
[1762735303859,0.69436,105930.0,105920.0,0.7331306]
[1762735304051,0.69436,105930.0,105920.0,0.4799906]
[1762735304251,1.05516,105930.0,105920.0,0.01886257]
[1762735304455,1.05525645,105930.0,105920.0,0.01886257]
[1762735305551,1.05525645,105930.0,105920.0,0.01986257]
[1762735305748,1.05525645,105930.0,105910.0,0.00024683]
[1762735305950,0.48159829,105920.0,105910.0,0.01371677]
[1762735306160,0.48159829,105920.0,105890.0,0.00472166]
[1762735306353,0.48159829,105900.0,105890.0,0.66335599]
[1762735306559,0.81515829,105900.0,105890.0,0.64249599]
[1762735306858,0.81515829,105900.0,105890.0,0.64987889]
[1762735307154,0.81519829,105900.0,105890.0,0.64987889]
[1762735307360,0.81519829,105900.0,105890.0,0.55541969]
[1762735307554,0.81519829,105900.0,105890.0,0.64987919]
[1762735308656,0.81619829,105900.0,105890.0,0.65087919]
[1762735308862,0.81919829,105900.0,105890.0,0.66494332]
[1762735309162,0.81919829,105900.0,105890.0,0.57048382]
[1762735309457,0.3648,105900.0,105890.0,0.66494332]
[1762735309655,0.3376,105900.0,105890.0,0.66494332]
[1762735310658,0.3376,105900.0,105890.0,0.57048382]
[1762735311259,0.33764,105900.0,105890.0,0.57048382]
[1762735311462,0.33664,105900.0,105890.0,1.02474332]
[1762735311664,0.33764,105900.0,105890.0,1.02474332]
[1762735311959,0.00014208,105910.0,105900.0,0.67151]
[1762735312150,0.33378208,105910.0,105900.0,0.70763216]
[1762735312352,0.46258037,105910.0,105900.0,0.70763216]
[1762735312551,0.82338037,105910.0,105900.0,0.70763216]
[1762735312962,0.82338037,105910.0,105900.0,0.17362413]
[1762735313164,0.82438037,105910.0,105900.0,0.17362413]
[1762735313460,0.82438037,105910.0,105900.0,0.43013216]
[1762735313659,0.82838037,105910.0,105900.0,0.68677216]
[1762735314051,0.82438037,105910.0,105900.0,0.68777216]
[1762735314256,0.82838037,105910.0,105900.0,0.68777216]
[1762735314564,0.82738037,105910.0,105900.0,0.70863216]
[1762735314758,0.70658208,105910.0,105900.0,0.70863216]
[1762735314959,0.70258208,105910.0,105900.0,0.80308266]
[1762735315465,0.34178208,105910.0,105900.0,0.80408266]
[1762735315667,0.69858208,105910.0,105900.0,0.80308266]
[1762735315862,0.33378208,105910.0,105900.0,0.80408266]
[1762735316286,0.33378208,105910.0,105900.0,0.80208266]
[1762735317268,2.08e-06,105910.0,105900.0,1.16288266]
[1762735317565,0.36089645,105930.0,105920.0,0.7730327]
[1762735317760,0.59555645,105930.0,105920.0,0.71472216]
[1762735317961,1.23469645,105930.0,105920.0,0.71472216]
[1762735318166,1.23469645,105930.0,105920.0,0.80915486]
[1762735318560,0.87389645,105930.0,105920.0,0.80915486]
[1762735318763,1.23469645,105930.0,105920.0,0.80915486]
[1762735319062,1.23469645,105930.0,105920.0,0.71472216]
[1762735319262,0.87389645,105930.0,105920.0,0.80915486]
[1762735319468,9.645e-05,105930.0,105920.0,1.16995486]
[1762735319668,0.33373645,105930.0,105920.0,1.16995486]
[1762735319866,0.33373645,105930.0,105920.0,1.17095486]
[1762735320662,0.33373645,105930.0,105920.0,1.07652216]
[1762735320964,0.87389645,105930.0,105920.0,1.17095476]
[1762735321268,0.33373645,105930.0,105920.0,1.07652216]
[1762735321468,0.33373645,105930.0,105920.0,1.17095476]
[1762735322265,0.33373645,105930.0,105920.0,1.16995476]
[1762735323469,9.645e-05,105930.0,105920.0,1.5740092]
[1762735323670,0.00014208,105940.0,105920.0,1.5740092]
[1762735323671,0.62262,105960.0,105950.0,0.51197]
[1762735323974,0.62262,105960.0,105950.0,0.64249806]
[1762735324169,0.59542,105960.0,105950.0,0.64249806]
[1762735324369,0.26182,105960.0,105950.0,0.64249806]
[1762735324569,0.90110208,105970.0,105960.0,0.772997]
[1762735324770,0.26206683,105970.0,105960.0,0.78825916]
[1762735324971,0.59566683,105970.0,105960.0,0.80911916]
[1762735325371,0.33384683,105970.0,105960.0,0.80911916]
[1762735325771,0.33384683,105970.0,105960.0,0.71472216]
[1762735325976,0.33384683,105970.0,105960.0,1.17091916]
[1762735326371,0.87400683,105970.0,105960.0,1.07652216]
[1762735326572,0.99480512,105970.0,105960.0,0.79152107]
[1762735326876,1.35560512,105970.0,105960.0,0.79152107]
[1762735327079,1.35560512,105970.0,105960.0,0.27359216]
[1762735327467,1.35560512,105970.0,105960.0,0.01526216]
[1762735327868,1.35560512,105970.0,105960.0,0.00219803]
[1762735328179,0.26182,105960.0,105950.0,0.3527357]
[1762735328475,0.54016,105960.0,105950.0,0.37579373]
[1762735328675,0.54016,105960.0,105950.0,0.62943373]
[1762735328876,0.54016,105960.0,105950.0,0.53502803]
[1762735329278,0.54016,105960.0,105950.0,0.53602803]
[1762735329476,0.90096,105960.0,105950.0,0.001]
[1762735329980,0.90096,105960.0,105950.0,0.01342779]
[1762735330181,0.90096,105960.0,105950.0,0.01642779]
[1762735331080,0.90096,105960.0,105950.0,0.01442779]
[1762735332179,0.90096,105960.0,105950.0,0.10883369]
[1762735332785,0.90096,105960.0,105950.0,0.36716369]
[1762735332984,0.90096,105960.0,105950.0,0.62300172]
[1762735333484,0.90096,105960.0,105950.0,0.11103172]
[1762735333670,0.90096,105960.0,105950.0,0.62300172]
[1762735333981,1.23448,105960.0,105950.0,0.64386172]
[1762735334681,0.54016,105960.0,105950.0,0.64386172]
[1762735334881,0.87368,105960.0,105950.0,0.64386172]
[1762735335078,0.87368,105960.0,105950.0,0.64286172]
[1762735335285,0.87368,105960.0,105950.0,0.64386172]
[1762735335680,1.23448,105960.0,105950.0,0.64386172]
[1762735335875,1.23448,105960.0,105950.0,0.54945582]
[1762735336281,1.23448,105960.0,105950.0,0.01562582]
[1762735336478,0.59534,105960.0,105950.0,0.64286172]
[1762735336786,0.36104683,105970.0,105960.0,0.772997]
[1762735337081,0.36104683,105970.0,105960.0,0.87168357]
[1762735337277,0.33372683,105970.0,105960.0,0.87168357]
[1762735337579,0.00024683,105970.0,105960.0,1.2433305]
[1762735337785,0.33372683,105970.0,105960.0,1.25604309]
[1762735338789,0.00024683,105970.0,105960.0,1.25604309]
[1762735339176,0.05703829,105980.0,105970.0,0.6063581]
[1762735339376,0.05703829,105980.0,105970.0,1.00292872]
[1762735339584,0.0045,105980.0,105970.0,1.00292872]
[1762735340785,0.0045,105980.0,105970.0,0.99021613]
[1762735340988,0.0045,105980.0,105970.0,0.99321613]
[1762735341186,0.0045,105980.0,105970.0,0.99421613]
[1762735341685,1.02625829,105980.0,105970.0,0.55143551]
[1762735342188,0.66545829,105980.0,105970.0,0.55143551]
[1762735342391,1.02625829,105980.0,105970.0,0.01860551]
[1762735342682,1.13919829,105980.0,105970.0,0.01860551]
[1762735342885,1.02625829,105980.0,105970.0,0.00419803]
[1762735343284,1.02625829,105980.0,105970.0,0.002]
[1762735343676,0.26182,105970.0,105960.0,0.00014208]
[1762735343884,1.20037306,105970.0,105960.0,0.00014208]
[1762735344481,1.20037306,105970.0,105960.0,0.00234011]
[1762735344788,1.32117135,105970.0,105960.0,0.68094011]
[1762735344983,1.32117135,105970.0,105960.0,0.00234011]
[1762735345184,1.20037306,105970.0,105960.0,0.00234011]
[1762735345386,0.48159829,105970.0,105960.0,0.68094011]
[1762735345578,0.3334,105970.0,105960.0,0.28521911]
[1762735345782,0.3334,105970.0,105960.0,0.79718911]
[1762735345984,0.59522,105970.0,105960.0,0.79718911]
[1762735346181,0.85286,105970.0,105960.0,0.79718911]
[1762735346380,1.21366,105970.0,105960.0,0.79718911]
[1762735346691,1.21366,105970.0,105960.0,0.79818911]
[1762735346889,0.51946,105970.0,105960.0,0.79818911]
[1762735347092,0.85282,105970.0,105960.0,0.79818911]
[1762735347293,0.85282,105970.0,105960.0,0.79718911]
[1762735347685,0.26182,105970.0,105960.0,1.23419899]
[1762735347886,0.88834,105980.0,105970.0,0.6291581]
[1762735348194,1.2217,105980.0,105970.0,0.65221613]
[1762735348378,1.2217,105980.0,105970.0,0.55782803]
[1762735348578,1.2217,105980.0,105970.0,0.26317803]
[1762735348779,0.2654,105970.0,105960.0,0.16777208]
[1762735348986,0.64383829,105970.0,105960.0,0.81999721]
[1762735349294,0.52304,105970.0,105960.0,1.17979721]
[1762735349979,1.34249829,105980.0,105970.0,0.6291582]
[1762735350182,1.34249829,105980.0,105970.0,0.55782803]
[1762735350389,1.34249829,105980.0,105970.0,0.00219803]
[1762735350583,1.2217,105980.0,105970.0,0.00219803]
[1762735350788,1.2217,105980.0,105960.0,0.70254208]
[1762735350789,0.52304,105970.0,105960.0,0.70254208]
[1762735350984,0.48905426,105970.0,105960.0,0.70474011]
[1762735351185,0.84985426,105970.0,105960.0,0.70474011]
[1762735351389,0.84985426,105970.0,105960.0,0.72460011]
[1762735352094,0.84985426,105970.0,105960.0,0.72560011]
[1762735352498,0.84985426,105970.0,105960.0,0.00334011]
[1762735352687,0.84985426,105970.0,105960.0,0.00114208]
[1762735353294,0.84985426,105970.0,105960.0,0.09773711]
[1762735353493,0.84985426,105970.0,105960.0,0.51615711]
[1762735353809,0.19016,105940.0,105930.0,4.01e-06]
[1762735354005,1.76989441,105940.0,105900.0,0.21015165]
[1762735354294,0.12079829,105910.0,105900.0,1.15131256]
[1762735354500,1.00429803,105910.0,105900.0,0.69606266]
[1762735354794,1.00429803,105910.0,105900.0,0.42227266]
[1762735354994,1.00438204,105910.0,105900.0,0.16129266]
[1762735355195,1.02409779,105910.0,105900.0,0.16229266]
[1762735355395,1.02409779,105910.0,105900.0,0.001]
[1762735355396,1.00438204,105910.0,105900.0,0.001]
[1762735355597,1.14487579,105910.0,105900.0,0.001]
[1762735355891,0.30294,105900.0,105890.0,0.00486374]
[1762735356095,0.66593803,105900.0,105890.0,0.0055964]
[1762735356893,0.74840146,105900.0,105890.0,0.0055964]
[1762735357099,0.74840146,105900.0,105890.0,0.2665764]
[1762735357298,0.74840146,105900.0,105890.0,0.5403664]
[1762735358193,0.67693803,105900.0,105890.0,0.5413664]
[1762735358388,0.75940146,105900.0,105890.0,0.5413664]
[1762735358896,0.77040146,105900.0,105890.0,0.6368258]
[1762735359193,0.61893146,105900.0,105890.0,0.5423664]
[1762735359602,0.77040146,105900.0,105890.0,0.5423664]
[1762735361199,0.77040146,105900.0,105890.0,0.0075964]
[1762735361598,0.88325146,105900.0,105890.0,0.00686374]
[1762735364394,0.77040146,105900.0,105890.0,0.00686374]
[1762735364794,0.77040146,105900.0,105890.0,0.0075964]
[1762735365305,0.77040146,105900.0,105890.0,0.6368258]
[1762735365493,1.10784146,105900.0,105890.0,0.6368258]
[1762735365697,0.87390803,105900.0,105890.0,0.6368258]
[1762735365891,0.95637146,105900.0,105890.0,0.6368258]
[1762735367099,0.72243803,105900.0,105890.0,0.6368258]
[1762735367505,0.36163803,105900.0,105890.0,0.6368258]
[1762735367708,0.02419803,105900.0,105890.0,1.2368258]
[1762735368003,0.022,105900.0,105890.0,1.2368258]
[1762735368308,0.02419803,105900.0,105890.0,0.9031664]
[1762735368501,0.02419803,105900.0,105890.0,0.9976258]
[1762735368811,0.61893146,105900.0,105890.0,0.5423664]
[1762735369005,0.02419803,105900.0,105890.0,0.9976258]
[1762735369304,0.022,105900.0,105890.0,1.5976258]
[1762735369602,0.02419803,105900.0,105890.0,0.9976258]
[1762735370107,0.022,105900.0,105890.0,0.9976258]
[1762735371105,0.69816401,105910.0,105900.0,0.7790405]
[1762735371301,0.70036204,105910.0,105900.0,0.77977316]
[1762735371697,0.70036204,105910.0,105900.0,0.68532266]
[1762735372003,0.78282547,105910.0,105900.0,0.77977316]
[1762735372204,0.70036204,105910.0,105900.0,0.68532266]
[1762735372504,0.78282547,105910.0,105900.0,0.68532266]
[1762735372801,1.06582547,105910.0,105900.0,0.68532266]
[1762735373002,1.06582547,105910.0,105900.0,0.77977316]
[1762735373307,1.07082547,105910.0,105900.0,0.77977316]
[1762735373603,0.70536204,105910.0,105900.0,0.77977316]
[1762735373804,0.70336204,105910.0,105900.0,0.77977316]
[1762735374108,0.36356204,105910.0,105900.0,0.78077316]
[1762735374500,0.35756204,105910.0,105900.0,0.77977316]
[1762735374700,0.34356204,105910.0,105900.0,0.77977316]
[1762735374898,0.34856204,105910.0,105900.0,0.77977316]
[1762735375107,0.01128204,105910.0,105900.0,1.14057316]
[1762735376108,0.00728204,105910.0,105900.0,1.14057316]
[1762735376297,0.00928204,105910.0,105900.0,1.14057316]
[1762735376707,0.00728204,105910.0,105900.0,1.14057316]
[1762735376909,0.09374547,105910.0,105900.0,1.14057316]
[1762735377406,0.08674547,105910.0,105900.0,1.14057316]
[1762735377609,0.20671547,105910.0,105900.0,1.14057316]
[1762735378209,0.20371547,105910.0,105900.0,1.14057316]
[1762735378513,0.10074547,105910.0,105900.0,1.14057316]
[1762735379009,0.10874547,105910.0,105900.0,1.14157316]
[1762735379307,0.02628204,105910.0,105900.0,1.14157316]
[1762735379502,0.65276343,105930.0,105920.0,0.7631726]
[1762735379704,0.23613803,105930.0,105920.0,0.76390526]
[1762735380011,0.00219803,105930.0,105920.0,1.12470526]
[1762735380206,0.93094,105950.0,105940.0,0.66874]
[1762735380505,1.01560146,105950.0,105940.0,0.66947266]
[1762735380710,1.01560146,105950.0,105940.0,0.76388746]
[1762735381106,0.44546146,105950.0,105940.0,0.76388746]
[1762735381309,0.00219803,105950.0,105940.0,0.76388746]
[1762735381500,0.44340551,105960.0,105950.0,0.6080959]
[1762735381501,0.08260551,105960.0,105950.0,0.6080959]
[1762735381707,0.44560354,105960.0,105950.0,0.85050266]
[1762735381911,0.67954354,105960.0,105950.0,0.85050266]
[1762735382205,0.67954354,105960.0,105950.0,0.51442266]
[1762735382902,0.67954354,105960.0,105950.0,0.60882856]
[1762735383108,0.68554354,105960.0,105950.0,0.60882856]
[1762735383310,0.36914011,105960.0,105950.0,0.60882856]
[1762735383504,0.36914011,105960.0,105950.0,0.61282856]
[1762735383705,0.3653,105980.0,105970.0,0.51369]
[1762735383922,0.36749803,105980.0,105970.0,0.60881076]
[1762735384406,0.00669803,105980.0,105970.0,0.60881076]
[1762735385305,0.00669803,105980.0,105970.0,0.96961076]
[1762735385507,0.08916146,105980.0,105970.0,0.60881076]
[1762735385700,0.08916146,105980.0,105970.0,0.51442266]
[1762735385908,0.32910146,105980.0,105970.0,0.51442266]
[1762735386212,0.68990146,105980.0,105970.0,0.51442266]
[1762735386608,0.60743803,105980.0,105970.0,0.51442266]
[1762735386814,0.68990146,105980.0,105970.0,0.51442266]
[1762735387405,0.60743803,105980.0,105970.0,0.51442266]
[1762735387613,1.02578146,105980.0,105970.0,0.51442266]
[1762735388407,0.94331803,105980.0,105970.0,0.51442266]
[1762735388601,1.02578146,105980.0,105970.0,0.00073266]
[1762735388801,0.99179684,105980.0,105960.0,0.15519208]
[1762735389010,0.62264343,105970.0,105960.0,0.67108011]
[1762735389313,0.62264343,105970.0,105960.0,0.76547711]
[1762735389515,0.54018,105970.0,105960.0,0.76547711]
[1762735389706,0.62264343,105970.0,105960.0,0.76547711]
[1762735390107,0.62264343,105970.0,105960.0,0.67208011]
[1762735390302,0.3608,105970.0,105960.0,0.76647711]
[1762735390515,0.62264343,105970.0,105960.0,0.67208011]
[1762735390711,0.62264343,105970.0,105960.0,0.67408011]
[1762735390906,0.62264343,105970.0,105960.0,0.43126011]
[1762735391106,0.62664343,105970.0,105960.0,0.43126011]
[1762735391326,0.62664343,105970.0,105960.0,0.00214208]